[Event "Early-Titled-Tuesday-Blitz-January-16-2024"]
[Site "Chess.com"]
[Date "2024.01.16"]
[Round "8"]
[White "lefonghua"]
[Black "GMSrinath"]
[Result "1/2-1/2"]
[WhiteElo "2659"]
[BlackElo "2822"]
[TimeControl "180+1"]
[EndTime "9:33:51 PST"]
[Termination "Game drawn by repetition"]

1. d4 {[%clk 0:03:00.9]} 1... Nf6 {[%clk 0:02:56]} 2. c4 {[%clk 0:03:01.3]} 2...
e6 {[%clk 0:02:55.9]} 3. Nc3 {[%clk 0:03:01.6]} 3... Bb4 {[%clk 0:02:55.5]} 4.
f3 {[%clk 0:03:01.2]} 4... c5 {[%clk 0:02:50.4]} 5. a3 {[%clk 0:03:00.4]} 5...
Bxc3+ {[%clk 0:02:49.4]} 6. bxc3 {[%clk 0:03:01.3]} 6... d5 {[%clk 0:02:44.8]}
7. cxd5 {[%clk 0:03:01.2]} 7... Nxd5 {[%clk 0:02:44.1]} 8. dxc5 {[%clk
0:02:59.6]} 8... Qa5 {[%clk 0:02:44.1]} 9. e4 {[%clk 0:02:58.2]} 9... Ne7 {[%clk
0:02:44.4]} 10. Be3 {[%clk 0:02:52]} 10... O-O {[%clk 0:02:43.4]} 11. Qb3 {[%clk
0:02:47.2]} 11... Nbc6 {[%clk 0:02:42.9]} 12. Nh3 {[%clk 0:02:19.2]} 12... e5
{[%clk 0:02:40.4]} 13. Nf2 {[%clk 0:02:19.5]} 13... Be6 {[%clk 0:02:36.9]} 14.
Bc4 {[%clk 0:02:18.7]} 14... Nd4 {[%clk 0:02:15.2]} 15. Bxd4 {[%clk 0:02:14.6]}
15... Bxc4 {[%clk 0:02:15.3]} 16. Qxc4 {[%clk 0:02:12.7]} 16... exd4 {[%clk
0:02:15.6]} 17. Qxd4 {[%clk 0:02:02.9]} 17... Qa6 {[%clk 0:02:04.4]} 18. Qd3
{[%clk 0:01:56.3]} 18... Qa5 {[%clk 0:02:04.3]} 19. O-O {[%clk 0:01:52.6]} 19...
Qxc5 {[%clk 0:02:04]} 20. Qd4 {[%clk 0:01:50.6]} 20... Qc7 {[%clk 0:02:00.6]}
21. Rfd1 {[%clk 0:01:44.2]} 21... Ng6 {[%clk 0:01:51.1]} 22. Nd3 {[%clk
0:01:35.3]} 22... Rfd8 {[%clk 0:01:49.2]} 23. Qc5 {[%clk 0:01:31.7]} 23... Qd7
{[%clk 0:01:28.8]} 24. Nf2 {[%clk 0:01:23.1]} 24... Qa4 {[%clk 0:01:26.4]} 25.
Qc7 {[%clk 0:01:06.6]} 25... Rxd1+ {[%clk 0:01:10.5]} 26. Rxd1 {[%clk
0:01:07.5]} 26... Qxa3 {[%clk 0:01:05.5]} 27. Qxb7 {[%clk 0:01:03.7]} 27... Rf8
{[%clk 0:01:05.3]} 28. Qb4 {[%clk 0:00:53.8]} 28... Qa2 {[%clk 0:01:02.7]} 29.
Qb1 {[%clk 0:00:45.8]} 29... Qa3 {[%clk 0:00:57.3]} 30. Qb4 {[%clk 0:00:40.6]}
30... Qa2 {[%clk 0:00:57.4]} 31. Qb1 {[%clk 0:00:40.2]} 31... Qc4 {[%clk
0:00:57.5]} 32. Qd3 {[%clk 0:00:39]} 32... Qa4 {[%clk 0:00:51.6]} 33. Qd4 {[%clk
0:00:35.7]} 33... Qa2 {[%clk 0:00:49.3]} 34. g3 {[%clk 0:00:33]} 34... a5 {[%clk
0:00:44]} 35. c4 {[%clk 0:00:30.8]} 35... a4 {[%clk 0:00:32.4]} 36. c5 {[%clk
0:00:30.9]} 36... a3 {[%clk 0:00:33]} 37. Ra1 {[%clk 0:00:27.9]} 37... Qb3
{[%clk 0:00:29.1]} 38. Qd3 {[%clk 0:00:26.9]} 38... Qxd3 {[%clk 0:00:21.6]} 39.
Nxd3 {[%clk 0:00:27.8]} 39... Ra8 {[%clk 0:00:21.9]} 40. c6 {[%clk 0:00:23.7]}
40... Ne7 {[%clk 0:00:22.3]} 41. c7 {[%clk 0:00:23.5]} 41... Kf8 {[%clk
0:00:22.2]} 42. Nb4 {[%clk 0:00:18.7]} 42... Ke8 {[%clk 0:00:21.6]} 43. Ra2
{[%clk 0:00:18.2]} 43... Kd7 {[%clk 0:00:20.2]} 44. Nc2 {[%clk 0:00:18.6]} 44...
Rc8 {[%clk 0:00:16.5]} 45. Rxa3 {[%clk 0:00:18.7]} 45... Rxc7 {[%clk 0:00:16.9]}
46. Rd3+ {[%clk 0:00:19.1]} 46... Ke8 {[%clk 0:00:17.2]} 47. Ne3 {[%clk
0:00:19.6]} 47... Ra7 {[%clk 0:00:15.7]} 48. Rd2 {[%clk 0:00:18.6]} 48... Ra3
{[%clk 0:00:15.7]} 49. Kf2 {[%clk 0:00:19]} 49... h5 {[%clk 0:00:14.4]} 50. f4
{[%clk 0:00:19.3]} 50... g6 {[%clk 0:00:14.3]} 51. e5 {[%clk 0:00:19.6]} 51...
Nc6 {[%clk 0:00:14.5]} 52. Nd5 {[%clk 0:00:18.9]} 52... Rb3 {[%clk 0:00:12.9]}
53. Nf6+ {[%clk 0:00:19.2]} 53... Kf8 {[%clk 0:00:12.6]} 54. Rc2 {[%clk
0:00:18.1]} 54... Ne7 {[%clk 0:00:08.6]} 55. Ra2 {[%clk 0:00:16.4]} 55... Rb7
{[%clk 0:00:07.1]} 56. Ra8+ {[%clk 0:00:15.8]} 56... Kg7 {[%clk 0:00:07.4]} 57.
Ne8+ {[%clk 0:00:14.7]} 57... Kh7 {[%clk 0:00:05.2]} 58. Nf6+ {[%clk 0:00:15.1]}
58... Kg7 {[%clk 0:00:04.9]} 59. Ke2 {[%clk 0:00:15.5]} 59... Rb2+ {[%clk
0:00:04.7]} 60. Kd3 {[%clk 0:00:15.9]} 60... Rxh2 {[%clk 0:00:05.6]} 61. Re8
{[%clk 0:00:14.7]} 61... Nf5 {[%clk 0:00:05.9]} 62. Rg8+ {[%clk 0:00:12.3]}
62... Kh6 {[%clk 0:00:06.2]} 63. Rh8+ {[%clk 0:00:12.9]} 63... Kg7 {[%clk
0:00:05.3]} 64. Rg8+ {[%clk 0:00:11.7]} 64... Kh6 {[%clk 0:00:05.9]} 65. Ng4+
{[%clk 0:00:09.3]} 65... Kh7 {[%clk 0:00:04.7]} 66. Nf6+ {[%clk 0:00:06.5]}
66... Kh6 {[%clk 0:00:05.2]} 1/2-1/2

[Event "Early-Titled-Tuesday-Blitz-January-16-2024"]
[Site "Chess.com"]
[Date "2024.01.16"]
[Round "8"]
[White "BogdanDeac"]
[Black "DreamsAreFake"]
[Result "1-0"]
[WhiteElo "3011"]
[BlackElo "2757"]
[TimeControl "180+1"]
[EndTime "9:33:52 PST"]
[Termination "BogdanDeac won on time"]

1. d4 {[%clk 0:03:00.9]} 1... Nf6 {[%clk 0:03:00.3]} 2. Bf4 {[%clk 0:03:00.9]}
2... b6 {[%clk 0:03:00.3]} 3. c4 {[%clk 0:03:00.4]} 3... Bb7 {[%clk 0:03:01.1]}
4. Nc3 {[%clk 0:03:00.8]} 4... g6 {[%clk 0:03:01.7]} 5. d5 {[%clk 0:02:59.7]}
5... Bg7 {[%clk 0:03:02.1]} 6. e4 {[%clk 0:03:00.3]} 6... O-O {[%clk 0:03:02.5]}
7. Be2 {[%clk 0:02:59.5]} 7... e6 {[%clk 0:02:54.4]} 8. Nf3 {[%clk 0:02:56.4]}
8... exd5 {[%clk 0:02:49.5]} 9. exd5 {[%clk 0:02:55.6]} 9... Na6 {[%clk
0:02:49.1]} 10. O-O {[%clk 0:02:54.7]} 10... Re8 {[%clk 0:02:49.3]} 11. Re1
{[%clk 0:02:52.8]} 11... Nc5 {[%clk 0:02:49.2]} 12. Qc2 {[%clk 0:02:49.4]} 12...
d6 {[%clk 0:02:48.1]} 13. Bf1 {[%clk 0:02:45]} 13... a5 {[%clk 0:02:42.2]} 14.
h3 {[%clk 0:02:42.6]} 14... Qd7 {[%clk 0:02:41.4]} 15. Be3 {[%clk 0:02:41.6]}
15... Nfe4 {[%clk 0:02:37]} 16. Nxe4 {[%clk 0:02:39.1]} 16... Nxe4 {[%clk
0:02:36.3]} 17. Bd4 {[%clk 0:02:39.6]} 17... Bxd4 {[%clk 0:02:19.9]} 18. Nxd4
{[%clk 0:02:38.7]} 18... Nf6 {[%clk 0:02:14.4]} 19. b3 {[%clk 0:02:33.7]} 19...
Rxe1 {[%clk 0:02:13]} 20. Rxe1 {[%clk 0:02:34.4]} 20... Re8 {[%clk 0:02:13]} 21.
Rd1 {[%clk 0:02:35.1]} 21... Qe7 {[%clk 0:02:08.7]} 22. a3 {[%clk 0:02:34.1]}
22... Qe4 {[%clk 0:01:50.3]} 23. Qd2 {[%clk 0:02:33.1]} 23... Qe5 {[%clk
0:01:43.5]} 24. b4 {[%clk 0:02:26.9]} 24... Ne4 {[%clk 0:01:41.5]} 25. Qc2
{[%clk 0:02:26.7]} 25... axb4 {[%clk 0:01:40.3]} 26. axb4 {[%clk 0:02:25.4]}
26... Bc8 {[%clk 0:01:38.8]} 27. Nb5 {[%clk 0:02:24.2]} 27... Re7 {[%clk
0:01:32.7]} 28. Re1 {[%clk 0:02:23.1]} 28... Bf5 {[%clk 0:01:04]} 29. g4 {[%clk
0:01:34.8]} 29... Bd7 {[%clk 0:00:43.9]} 30. Nxc7 {[%clk 0:01:22.6]} 30... Qd4
{[%clk 0:00:33.3]} 31. Ne6 {[%clk 0:00:40.3]} 31... Qxf2+ {[%clk 0:00:18]} 32.
Qxf2 {[%clk 0:00:38.9]} 32... Nxf2 {[%clk 0:00:18.9]} 33. Kxf2 {[%clk
0:00:39.5]} 33... fxe6 {[%clk 0:00:18.7]} 34. Ra1 {[%clk 0:00:40.2]} 34... exd5
{[%clk 0:00:15.6]} 35. cxd5 {[%clk 0:00:40.7]} 35... Kg7 {[%clk 0:00:09.9]} 36.
Bd3 {[%clk 0:00:24.8]} 36... Kf6 {[%clk 0:00:08.7]} 37. Ra6 {[%clk 0:00:22.6]}
37... Ke5 {[%clk 0:00:09.2]} 38. Rxb6 {[%clk 0:00:22.1]} 38... Kxd5 {[%clk
0:00:09]} 39. Be2 {[%clk 0:00:21.9]} 39... Rf7+ {[%clk 0:00:08]} 40. Ke3 {[%clk
0:00:20.1]} 40... Ke5 {[%clk 0:00:07.7]} 41. Rb7 {[%clk 0:00:18.3]} 41... Be6
{[%clk 0:00:07.6]} 42. Rxf7 {[%clk 0:00:16.6]} 42... Bxf7 {[%clk 0:00:08.5]} 43.
Bb5 {[%clk 0:00:15.3]} 43... d5 {[%clk 0:00:08.4]} 44. Bc6 {[%clk 0:00:13.9]}
44... Kd6 {[%clk 0:00:07.5]} 45. Ba8 {[%clk 0:00:12.5]} 45... Be6 {[%clk
0:00:06.1]} 46. Kd4 {[%clk 0:00:11.2]} 46... h5 {[%clk 0:00:05.1]} 47. gxh5
{[%clk 0:00:11.3]} 47... gxh5 {[%clk 0:00:05.8]} 48. h4 {[%clk 0:00:11.9]} 48...
Bf7 {[%clk 0:00:05.4]} 49. b5 {[%clk 0:00:11.1]} 49... Be6 {[%clk 0:00:05.9]}
50. Bb7 {[%clk 0:00:08.3]} 50... Bf7 {[%clk 0:00:02.5]} 51. Bc6 {[%clk
0:00:08.5]} 51... Be6 {[%clk 0:00:01.1]} 52. Be8 {[%clk 0:00:08.7]} 52... Bg4
{[%clk 0:00:01.8]} 53. Bf7 {[%clk 0:00:08]} 53... Bf3 {[%clk 0:00:01.8]} 54. Bg6
{[%clk 0:00:06.2]} 54... Bg4 {[%clk 0:00:01.9]} 55. Be8 {[%clk 0:00:06.8]} 55...
Bf3 {[%clk 0:00:02.5]} 56. Bf7 {[%clk 0:00:07]} 56... Be4 {[%clk 0:00:01.6]} 57.
Bxh5 {[%clk 0:00:06.7]} 57... Bg2 {[%clk 0:00:00.9]} 58. Be2 {[%clk 0:00:06.7]}
58... Be4 {[%clk 0:00:00.6]} 59. h5 {[%clk 0:00:07]} 1-0

[Event "Early-Titled-Tuesday-Blitz-January-16-2024"]
[Site "Chess.com"]
[Date "2024.01.16"]
[Round "8"]
[White "ChessSwole"]
[Black "Licancabur"]
[Result "0-1"]
[WhiteElo "2681"]
[BlackElo "2517"]
[TimeControl "180+1"]
[EndTime "9:33:52 PST"]
[Termination "Licancabur won by checkmate"]

1. e4 {[%clk 0:03:00.9]} 1... Nf6 {[%clk 0:02:58.9]} 2. e5 {[%clk 0:03:00.9]}
2... Nd5 {[%clk 0:02:59.2]} 3. d4 {[%clk 0:03:00.9]} 3... d6 {[%clk 0:02:59.5]}
4. Nf3 {[%clk 0:03:01.5]} 4... g6 {[%clk 0:02:58.7]} 5. h3 {[%clk 0:02:59.9]}
5... Bg7 {[%clk 0:02:57.5]} 6. Be2 {[%clk 0:03:00.3]} 6... O-O {[%clk
0:02:57.1]} 7. O-O {[%clk 0:03:00.2]} 7... Nc6 {[%clk 0:02:56.8]} 8. c4 {[%clk
0:03:00]} 8... Nb6 {[%clk 0:02:56.7]} 9. exd6 {[%clk 0:02:51.7]} 9... cxd6
{[%clk 0:02:56.7]} 10. Nc3 {[%clk 0:02:46.5]} 10... Bf5 {[%clk 0:02:55.9]} 11.
b3 {[%clk 0:02:44.9]} 11... e5 {[%clk 0:02:45.2]} 12. d5 {[%clk 0:02:42.6]}
12... Nd4 {[%clk 0:02:34]} 13. Bb2 {[%clk 0:02:35.3]} 13... Nxe2+ {[%clk
0:02:14.6]} 14. Nxe2 {[%clk 0:02:32.3]} 14... Bd7 {[%clk 0:02:06.3]} 15. c5
{[%clk 0:02:30.4]} 15... dxc5 {[%clk 0:02:01.2]} 16. Bxe5 {[%clk 0:02:30.1]}
16... Bxe5 {[%clk 0:01:55.1]} 17. Nxe5 {[%clk 0:02:31]} 17... Re8 {[%clk
0:01:51.7]} 18. f4 {[%clk 0:02:24.6]} 18... Bb5 {[%clk 0:01:45.8]} 19. d6 {[%clk
0:02:08.7]} 19... Bxe2 {[%clk 0:01:43.1]} 20. Qxe2 {[%clk 0:02:09.6]} 20... f6
{[%clk 0:01:42]} 21. Rad1 {[%clk 0:01:43]} 21... fxe5 {[%clk 0:01:22.5]} 22.
fxe5 {[%clk 0:01:43.9]} 22... Qd7 {[%clk 0:01:22.9]} 23. Rf6 {[%clk 0:01:39.8]}
23... Re6 {[%clk 0:01:14.3]} 24. Rdf1 {[%clk 0:01:26.6]} 24... Rae8 {[%clk
0:01:02.7]} 25. Qf3 {[%clk 0:01:20.6]} 25... Rxf6 {[%clk 0:00:58]} 26. exf6
{[%clk 0:01:16.4]} 26... Qf7 {[%clk 0:00:51]} 27. a4 {[%clk 0:01:12.6]} 27... a5
{[%clk 0:00:42]} 28. Qc3 {[%clk 0:01:07.7]} 28... Nd7 {[%clk 0:00:40.4]} 29.
Qxa5 {[%clk 0:00:59]} 29... b6 {[%clk 0:00:33.4]} 30. Qb5 {[%clk 0:00:56.4]}
30... Re6 {[%clk 0:00:31.9]} 31. Qc6 {[%clk 0:00:51]} 31... Rxf6 {[%clk
0:00:28.9]} 32. Re1 {[%clk 0:00:48.4]} 32... Re6 {[%clk 0:00:19.1]} 33. Rf1
{[%clk 0:00:44.4]} 33... Rf6 {[%clk 0:00:19.1]} 34. Re1 {[%clk 0:00:44.4]} 34...
Re6 {[%clk 0:00:19.4]} 35. Rf1 {[%clk 0:00:44.5]} 35... Qe8 {[%clk 0:00:19]} 36.
Qd5 {[%clk 0:00:39.8]} 36... Kg7 {[%clk 0:00:19.2]} 37. Qd2 {[%clk 0:00:28.1]}
37... Nf6 {[%clk 0:00:18.6]} 38. Rd1 {[%clk 0:00:20.7]} 38... Qd7 {[%clk
0:00:18.9]} 39. h4 {[%clk 0:00:20.3]} 39... Ne4 {[%clk 0:00:18.8]} 40. Qf4
{[%clk 0:00:19.8]} 40... Nf6 {[%clk 0:00:15]} 41. b4 {[%clk 0:00:17.3]} 41... c4
{[%clk 0:00:13.9]} 42. a5 {[%clk 0:00:14.6]} 42... bxa5 {[%clk 0:00:13.4]} 43.
bxa5 {[%clk 0:00:15.5]} 43... c3 {[%clk 0:00:13.8]} 44. Qd4 {[%clk 0:00:15.5]}
44... c2 {[%clk 0:00:12.7]} 45. Rc1 {[%clk 0:00:14.6]} 45... Qxd6 {[%clk
0:00:12.9]} 46. Qb2 {[%clk 0:00:12.7]} 46... Qd1+ {[%clk 0:00:12.4]} 47. Kh2
{[%clk 0:00:12.7]} 47... Re1 {[%clk 0:00:11.1]} 48. Qxc2 {[%clk 0:00:09.9]}
48... Qxc1 {[%clk 0:00:10.3]} 49. Qb3 {[%clk 0:00:09.2]} 49... Rh1+ {[%clk
0:00:10.2]} 50. Kg3 {[%clk 0:00:09.5]} 50... Ne4+ {[%clk 0:00:10]} 51. Kf3
{[%clk 0:00:09.4]} 51... Qd1+ {[%clk 0:00:08.6]} 52. Qxd1 {[%clk 0:00:09.3]}
52... Rxd1 {[%clk 0:00:09.3]} 53. Kxe4 {[%clk 0:00:09.3]} 53... Ra1 {[%clk
0:00:10.2]} 54. Kf4 {[%clk 0:00:09.9]} 54... Rxa5 {[%clk 0:00:11.1]} 55. Kg4
{[%clk 0:00:10.7]} 55... Rb5 {[%clk 0:00:10.4]} 56. Kf4 {[%clk 0:00:11.4]} 56...
h5 {[%clk 0:00:09.5]} 57. Kg3 {[%clk 0:00:11.8]} 57... Kf6 {[%clk 0:00:09.9]}
58. Kf4 {[%clk 0:00:12.5]} 58... Rb4+ {[%clk 0:00:09.7]} 59. Kg3 {[%clk
0:00:13.3]} 59... Ra4 {[%clk 0:00:10.6]} 60. Kh3 {[%clk 0:00:13.9]} 60... Kf5
{[%clk 0:00:09.2]} 61. g3 {[%clk 0:00:14.8]} 61... Ra2 {[%clk 0:00:07.3]} 62.
g4+ {[%clk 0:00:14.2]} 62... Kf4 {[%clk 0:00:03]} 63. gxh5 {[%clk 0:00:15.1]}
63... g5 {[%clk 0:00:02.8]} 64. hxg5 {[%clk 0:00:15.4]} 64... Kxg5 {[%clk
0:00:03.2]} 65. Kg3 {[%clk 0:00:15.8]} 65... Kxh5 {[%clk 0:00:04]} 66. Kf4
{[%clk 0:00:16.2]} 66... Rc2 {[%clk 0:00:04]} 67. Ke3 {[%clk 0:00:17.1]} 67...
Rc8 {[%clk 0:00:04.5]} 68. Kd3 {[%clk 0:00:18]} 68... Kg4 {[%clk 0:00:04.6]} 69.
Kd4 {[%clk 0:00:18.9]} 69... Kf5 {[%clk 0:00:05]} 70. Kd5 {[%clk 0:00:19.8]}
70... Rc7 {[%clk 0:00:04.1]} 71. Kd6 {[%clk 0:00:20.7]} 71... Ra7 {[%clk
0:00:04.7]} 72. Kc6 {[%clk 0:00:21.2]} 72... Ra1 {[%clk 0:00:05.4]} 73. Kb6
{[%clk 0:00:22.1]} 73... Ke5 {[%clk 0:00:05.4]} 74. Kc5 {[%clk 0:00:23]} 74...
Ke4 {[%clk 0:00:05.7]} 75. Kb4 {[%clk 0:00:23.8]} 75... Rc1 {[%clk 0:00:06]} 76.
Kb3 {[%clk 0:00:24.4]} 76... Kd3 {[%clk 0:00:06.1]} 77. Kb2 {[%clk 0:00:25.3]}
77... Rc3 {[%clk 0:00:05.9]} 78. Ka2 {[%clk 0:00:25.6]} 78... Kc2 {[%clk
0:00:06]} 79. Ka1 {[%clk 0:00:25.9]} 79... Ra3# {[%clk 0:00:06.6]} 0-1

[Event "Early-Titled-Tuesday-Blitz-January-16-2024"]
[Site "Chess.com"]
[Date "2024.01.16"]
[Round "8"]
[White "dropstoneDP"]
[Black "BardArtem"]
[Result "0-1"]
[WhiteElo "3014"]
[BlackElo "2811"]
[TimeControl "180+1"]
[EndTime "9:33:53 PST"]
[Termination "BardArtem won by resignation"]

1. e4 {[%clk 0:03:00.9]} 1... e5 {[%clk 0:02:58.6]} 2. Nf3 {[%clk 0:03:01.3]}
2... Nc6 {[%clk 0:02:58.1]} 3. Bc4 {[%clk 0:03:01.7]} 3... Nge7 {[%clk
0:02:58.8]} 4. Ng5 {[%clk 0:03:00.9]} 4... d5 {[%clk 0:02:55.9]} 5. exd5 {[%clk
0:03:01.3]} 5... Nxd5 {[%clk 0:02:56.8]} 6. Nxf7 {[%clk 0:03:01.2]} 6... Kxf7
{[%clk 0:02:57.4]} 7. Qf3+ {[%clk 0:03:00.9]} 7... Ke6 {[%clk 0:02:54.4]} 8. Nc3
{[%clk 0:03:01.2]} 8... Ne7 {[%clk 0:02:28.7]} 9. d4 {[%clk 0:03:01]} 9... c6
{[%clk 0:02:13.4]} 10. O-O {[%clk 0:03:00.5]} 10... Qe8 {[%clk 0:02:03]} 11. Re1
{[%clk 0:02:59.2]} 11... Kd7 {[%clk 0:01:53.2]} 12. Nxd5 {[%clk 0:02:59.6]}
12... cxd5 {[%clk 0:01:38.9]} 13. Bb5+ {[%clk 0:02:57.6]} 13... Nc6 {[%clk
0:01:38.9]} 14. Rxe5 {[%clk 0:02:57.2]} 14... Qg6 {[%clk 0:01:30.1]} 15. Rxd5+
{[%clk 0:02:56.7]} 15... Kc7 {[%clk 0:01:24.2]} 16. Bf4+ {[%clk 0:02:56.4]}
16... Kb6 {[%clk 0:01:24.6]} 17. Qb3 {[%clk 0:02:28.2]} 17... Na5 {[%clk
0:01:23.2]} 18. Qc3 {[%clk 0:02:28.2]} 18... Qf7 {[%clk 0:01:08.1]} 19. b4
{[%clk 0:02:26.3]} 19... Nc6 {[%clk 0:01:01.8]} 20. Rc5 {[%clk 0:02:21.3]} 20...
Bd7 {[%clk 0:00:48.1]} 21. Bg3 {[%clk 0:02:18.5]} 21... Be7 {[%clk 0:00:37.7]}
22. d5 {[%clk 0:01:59.8]} 22... Qf6 {[%clk 0:00:29]} 23. dxc6 {[%clk 0:01:44]}
23... Qxc3 {[%clk 0:00:28.6]} 24. Rxc3 {[%clk 0:01:44.9]} 24... bxc6 {[%clk
0:00:29.3]} 25. Bd3 {[%clk 0:01:34.1]} 25... Bf6 {[%clk 0:00:28.4]} 26. Re1
{[%clk 0:01:10.6]} 26... Bxc3 {[%clk 0:00:27.3]} 27. Re7 {[%clk 0:01:11.2]}
27... Rad8 {[%clk 0:00:19.8]} 28. h3 {[%clk 0:01:07.9]} 28... Rhe8 {[%clk
0:00:19.2]} 29. Rf7 {[%clk 0:01:08.5]} 29... Bf6 {[%clk 0:00:15.6]} 30. Bd6
{[%clk 0:00:58.6]} 30... Re6 {[%clk 0:00:07.2]} 31. Bc5+ {[%clk 0:00:57.3]}
31... Kc7 {[%clk 0:00:07.9]} 32. Bxa7 {[%clk 0:00:55.7]} 32... Re7 {[%clk
0:00:06.9]} 33. Rxe7 {[%clk 0:00:51.3]} 33... Bxe7 {[%clk 0:00:07.8]} 34. Bd4
{[%clk 0:00:51.8]} 34... Bxb4 {[%clk 0:00:07.1]} 35. Bxg7 {[%clk 0:00:51.6]}
35... Ra8 {[%clk 0:00:07.5]} 36. Bxh7 {[%clk 0:00:50.8]} 36... Rxa2 {[%clk
0:00:06.6]} 37. g4 {[%clk 0:00:49.9]} 37... Kb6 {[%clk 0:00:04]} 38. Kg2 {[%clk
0:00:49.9]} 38... c5 {[%clk 0:00:03.8]} 39. g5 {[%clk 0:00:50.4]} 39... Bc6+
{[%clk 0:00:03.8]} 40. Kg3 {[%clk 0:00:50.6]} 40... Ra7 {[%clk 0:00:04.7]} 41.
Be5 {[%clk 0:00:26.9]} 41... Rxh7 {[%clk 0:00:04.7]} 42. f4 {[%clk 0:00:27.8]}
42... Be4 {[%clk 0:00:04.5]} 43. Kg4 {[%clk 0:00:27.8]} 43... Kc6 {[%clk
0:00:02.5]} 44. f5 {[%clk 0:00:28.3]} 44... Bxf5+ {[%clk 0:00:03]} 45. Kxf5
{[%clk 0:00:28.5]} 45... Rxh3 {[%clk 0:00:03.5]} 46. g6 {[%clk 0:00:29.2]} 46...
Rf3+ {[%clk 0:00:01.8]} 47. Kg4 {[%clk 0:00:27.1]} 47... Rf8 {[%clk 0:00:02.4]}
48. g7 {[%clk 0:00:27.3]} 48... Rg8 {[%clk 0:00:03]} 49. Kf5 {[%clk 0:00:27.9]}
49... Kd7 {[%clk 0:00:02.9]} 50. Kf6 {[%clk 0:00:25.9]} 50... Ke8 {[%clk
0:00:03]} 51. Kg6 {[%clk 0:00:26.4]} 51... c4 {[%clk 0:00:03]} 52. Kf6 {[%clk
0:00:25.9]} 52... Be7+ {[%clk 0:00:03.6]} 53. Ke6 {[%clk 0:00:25.8]} 53... Bg5
{[%clk 0:00:02.8]} 54. Kf5 {[%clk 0:00:24.7]} 54... Be7 {[%clk 0:00:02.2]} 55.
Kg6 {[%clk 0:00:24.7]} 55... Bd8 {[%clk 0:00:02]} 56. Bd4 {[%clk 0:00:24.5]}
56... Be7 {[%clk 0:00:02.3]} 57. Be5 {[%clk 0:00:24.9]} 57... Bh4 {[%clk
0:00:02.7]} 58. Bd4 {[%clk 0:00:24.8]} 58... Bg3 {[%clk 0:00:03.3]} 59. Bf6
{[%clk 0:00:24.8]} 59... Bd6 {[%clk 0:00:03.6]} 60. Bd4 {[%clk 0:00:25.2]} 60...
Bb4 {[%clk 0:00:03.9]} 61. Bf6 {[%clk 0:00:25.3]} 61... Be7 {[%clk 0:00:04.2]}
62. Bd4 {[%clk 0:00:25.4]} 62... Bf8 {[%clk 0:00:04.3]} 63. Bc3 {[%clk
0:00:06.3]} 63... Bxg7 {[%clk 0:00:04.7]} 64. Bxg7 {[%clk 0:00:07.2]} 64... Ke7
{[%clk 0:00:05.3]} 65. Kh6 {[%clk 0:00:06.9]} 65... Kf7 {[%clk 0:00:05.1]} 66.
Bd4 {[%clk 0:00:06.6]} 66... Rg2 {[%clk 0:00:05.6]} 67. c3 {[%clk 0:00:06.7]}
67... Ke6 {[%clk 0:00:06.2]} 68. Kh5 {[%clk 0:00:07.3]} 68... Kf5 {[%clk
0:00:06.8]} 69. Kh4 {[%clk 0:00:07.8]} 69... Ke4 {[%clk 0:00:07.5]} 70. Kh3
{[%clk 0:00:08.4]} 70... Rc2 {[%clk 0:00:07.6]} 71. Kg4 {[%clk 0:00:09]} 71...
Kd3 {[%clk 0:00:08.5]} 0-1